Cogmind - Beta 12 @@@ ROGUE MODE // 2023.04.19 @ 13:14:31 Player: Inkie Result: Destroyed by G-67 Veteran with Field Laser Performance ------------- Evolutions (5) 2500 Regions Visited (15) 3000 Robots Destroyed (104) 520 Value Destroyed (3414) 3414 Prototype IDs (20) 400 Alien Tech Used (2) 400 Bonus (2624) 2624 TOTAL SCORE: 12858 Bonus ------- High Alert Combat Kills 61 Follower Combat Kills 163 Entered Garrisons 600 Used RIF Installer 1500 Met Zhirov 300 Cogmind --------- Core Integrity 0/1000 Matter 240/300 Energy 99/100 System Corruption 16% Temperature Cool (0) Movement Core (50) Location -4/Proximity Caves Parts ------- > --- POWER (1) -------- (None) > --- PROPULSION (6) --- (None) > --- UTILITY (8) ------ Improved Hacking Suite Advanced Hacking Suite > --- WEAPON (2) ------- (None) > --- INVENTORY (5) ---- Relay Coupler [NC] (32) Relay Coupler [Proto] (9) Relay Coupler [Proto] (9) Relay Coupler [Proto] (9) Relay Coupler [Proto] (9) Peak State ------------ > --- POWER ------------ Quantum Reactor > --- PROPULSION ------- Biometal Heavy Treads Advanced Heavy Siege Treads Advanced Heavy Siege Treads > --- UTILITY ---------- Medium Storage Unit Improved Powered Armor Improved Hacking Suite Advanced Hacking Suite Advanced Hacking Suite Advanced Hacking Suite Relay Coupler [Swarmer] Advanced System Restoration Module > --- WEAPON ----------- Enhanced Quantum Rifle Enhanced Quantum Rifle > --- INVENTORY -------- Stasis Canceller Advanced ECM Suite Advanced Hacking Suite Relay Coupler [NC] Relay Coupler [Proto] Relay Coupler [Proto] Relay Coupler [Proto] Relay Coupler [Proto] Enhanced Nova Cannon Remote Datajack [Rating: 126] Favorites ----------- Power Quantum Reactor Engine Cooled Ion Engine Power Core Micro Nuclear Core Reactor Quantum Reactor Propulsion Improved Treads Treads Improved Treads Hover Unit Combat Gravmag System Flight Unit Cooled VTOL Module Utility Hardened Light Armor Plating Device Advanced ECM Suite Storage Medium Storage Unit Processor Enhanced Optical Array Hackware Advanced Hacking Suite Protection Hardened Light Armor Plating Weapon Enhanced Quantum Rifle Energy Gun Enhanced Quantum Rifle Energy Cannon Ion Cannon Ballistic Gun Assault Rifle Ballistic Cannon Mass Driver Launcher Grenade Launcher Special Weapon Plasma Cutter Impact Weapon Maul Slashing Weapon Greatsword Special Melee Weapon Improved Datajack Build | -11 -10 -9 -8 -8 -7 -6 -5 -5 -5 -5 -5 -5 -5 -5 -4 ------- Run | Jun Mat Mat Mat Gar Fac Fac Fac Gar Fac Gar Fac Upp Upp Zhi Pro Slots Evolved 10 | . . 2 2 . 2 2 2 . . . . . . . . Power . | . . . . . . . . . . . . . . . . Propulsion 4 | . . . . . 2 2 . . . . . . . . . Utility 6 | . . 2 2 . . . 2 . . . . . . . . Weapon . | . . . . . . . . . . . . . . . . Parts Attached 190 | 6 15 25 12 22 18 7 23 8 26 18 4 1 . 2 3 Power 14 | 1 . 2 . 1 3 2 2 . 2 1 . . . . . Engine 5 | 1 . 2 . 1 1 . . . . . . . . . . Core 5 | . . . . . 2 1 1 . 1 . . . . . . Reactor 4 | . . . . . . 1 1 . 1 1 . . . . . Propulsion 34 | 2 2 1 2 2 7 4 4 . 5 3 . . . . 2 Treads 13 | 2 2 1 2 2 . . . . . 3 . . . . 1 Leg . | . . . . . . . . . . . . . . . . Wheel . | . . . . . . . . . . . . . . . . Hover 3 | . . . . . . . . . 3 . . . . . . Flight 18 | . . . . . 7 4 4 . 2 . . . . . 1 Utility 68 | 1 3 6 2 7 6 1 14 5 13 6 2 . . 1 1 Device 30 | . . 2 1 3 . . 7 3 9 3 1 . . 1 . Storage 7 | 1 2 1 . . 2 . . . . . 1 . . . . Processor 2 | . . . . . . 1 1 . . . . . . . . Hackware 18 | . . . . 2 4 . 6 . 4 1 . . . . 1 Protection 11 | . 1 3 1 2 . . . 2 . 2 . . . . . Artifact . | . . . . . . . . . . . . . . . . Weapon 74 | 2 10 16 8 12 2 . 3 3 6 8 2 1 . 1 . Energy Gun 19 | 2 1 9 . . . . . . 1 4 1 . . 1 . Energy Cannon 12 | . . . 5 5 . . . . . 1 . 1 . . . Ballistic Gun 5 | . 2 1 . . . . . . 2 . . . . . . Ballistic Cannon 1 | . . . . . . . . 1 . . . . . . . Launcher 20 | . 2 3 3 6 . . 1 1 3 1 . . . . . Special Weapon 10 | . 4 3 . . . . . . . 2 1 . . . . Impact Weapon 2 | . 1 . . . 1 . . . . . . . . . . Slashing Weapon 2 | . . . . . . . 1 1 . . . . . . . Piercing Weapon . | . . . . . . . . . . . . . . . . Special Melee Weapon 3 | . . . . 1 1 . 1 . . . . . . . . Unidentified Prototypes 9 | . . 1 . . 1 1 2 . 2 . . . . 1 1 Parts Lost 41 | . 1 3 7 5 . 3 . 6 4 4 1 1 . . 6 Power 2 | . 1 . 1 . . . . . . . . . . . . Propulsion 11 | . . . 2 2 . 2 . . 1 . . . . . 4 Utility 20 | . . 1 4 1 . 1 . 5 2 3 . 1 . . 2 Weapon 8 | . . 2 . 2 . . . 1 1 1 1 . . . . Highest Loss Streak 6 | . 1 2 6 2 . 1 . 5 3 3 1 1 . . 5 To Critical Strikes . | . . . . . . . . . . . . . . . . Average Slot Usage (%) 86 | . 93 97 86 91 92 88 96 91 86 74 68 70 70 66 71 Engine 5 | . 9 10 8 9 3 . . . . . . . . . . Reactor 2 | . . . . . . . 4 5 4 5 5 5 5 5 4 Treads 15 | . 28 21 17 17 . . . . . 10 17 17 17 17 16 Flight 7 | . . . . . 29 35 33 34 26 3 . . . . . Device 7 | . . 2 15 18 6 . 3 3 11 4 9 11 11 13 15 Storage 9 | . 14 11 9 9 6 6 5 5 5 5 5 11 11 11 10 Hackware 10 | . . . . 5 31 31 30 25 25 21 11 11 11 11 11 Protection 10 | . 11 29 18 13 . . . 8 . 3 5 2 . . . Energy Gun 4 | . 3 12 . . . . . . 2 7 11 5 5 . 4 Energy Cannon 2 | . . . 15 14 . . . . . . . 3 5 5 4 Ballistic Gun 1 | . 7 . . . . . . . . . . . . . . Launcher 1 | . 2 . 2 3 . . . . . . . . . . . Special Weapon 3 | . 14 8 . . . . . . . 1 . . . . . Naked Turns . | . . . . . . . . . . . . . . . . Heaviest Build 117 | 10 92 109 117 113 25 25 32 32 41 64 69 76 64 67 67 Greatest Support 235 | 40 46 46 46 46 21 32 42 45 42 235 235 235 235 235 235 Greatest Overweight (x) 5 | . 1 2 2 5 1 . . . 2 1 . . . . . Average Overweight (x) . | . . 1 2 2 . . . . . . . . . . . Largest Inventory Capacity 25 | 8 25 25 25 25 25 10 10 10 10 10 10 10 10 10 10 Average Capacity 16 | 7 19 25 25 25 8 10 10 10 10 10 10 10 10 10 9 Most Carried 25 | 1 23 25 25 25 25 10 10 10 10 10 10 9 10 10 10 Average Carried 14 | . 11 23 24 23 8 9 8 8 9 9 9 8 9 9 9 Final Capacity 25 | 8 25 25 25 25 10 10 10 10 10 10 10 10 10 10 5 Final Carried 25 | 1 23 25 23 25 10 10 10 10 10 10 9 9 10 10 5 Class Distribution -------------------- 40% | Mutant 24% | Bothacker-Mutant 12% | Hacker-Sprinter 8% | Scavenger-Mutant 7% | Hacker-Mutant 3% | Wizard-Sprinter Dominant Class ---------------- Mutant | -10/Materials Mutant | -9/Materials Mutant | -8/Materials Scavenger-Mutant | -8/Garrison Hacker-Sprinter | -7/Factory Hacker-Sprinter | -6/Factory Hacker-Sprinter | -5/Factory Hacker-Mutant | -5/Garrison Wizard-Mutant | -5/Factory Hacker-Mutant | -5/Garrison Bothacker-Mutant | -5/Factory Bothacker-Mutant | -5/Upper Caves Bothacker-Mutant | -5/Upper Caves Bothacker-Mutant | -5/Zhirov Bothacker-Mutant | -4/Proximity Caves Resources | -11 -10 -9 -8 -8 -7 -6 -5 -5 -5 -5 -5 -5 -5 -5 -4 ----------- Run | Jun Mat Mat Mat Gar Fac Fac Fac Gar Fac Gar Fac Upp Upp Zhi Pro Matter Collected 2612 | 196 171 526 157 304 64 151 12 346 18 380 165 49 32 . 41 Remotely 60 | . . . . 60 . . . . . . . . . . . Salvage Created 3536 | . 278 687 323 505 160 254 122 140 18 233 318 316 . . 182 Parts 216 | . 23 54 35 31 2 3 3 8 1 11 20 12 . . 13 Haulers Intercepted 6 | . 1 1 . . 1 2 1 . . . . . . . . Recyclers Shooed 3 | . . 1 1 . . . . . . . 1 . . . . Parts Field Recycled . | . . . . . . . . . . . . . . . . Retrieved Matter . | . . . . . . . . . . . . . . . . Parts Self-Destructed 28 | . . . . . . . . . . . . 15 . . 13 Prevented 5 | . . . . . . . . . . . . 5 . . . Kills | -11 -10 -9 -8 -8 -7 -6 -5 -5 -5 -5 -5 -5 -5 -5 -4 ------- Run | Jun Mat Mat Mat Gar Fac Fac Fac Gar Fac Gar Fac Upp Upp Zhi Pro Combat Hostiles Destroyed 82 | . 10 15 13 14 . . 1 2 . 5 8 6 . . 8 Melee 4 | . . . . . . . . 2 . . . 2 . . . Guns 31 | . 3 8 . . . . . . . 4 7 3 . . 6 Cannons 11 | . . . 4 6 . . . . . . . 1 . . . AOE 34 | . 7 7 9 8 . . 1 . . . 1 . . . 1 Classes Destroyed 16 | . 5 4 2 2 . . . 1 . 1 . . . . 1 Worker 3 | . . . 1 . . . . . 1 . 1 . . . . Builder 4 | . . . 1 . 1 2 . . . . . . . . . Tunneler 1 | . . 1 . . . . . . . . . . . . . Hauler 6 | . 1 1 . . 1 2 1 . . . . . . . . Recycler 2 | . . 1 . . 1 . . . . . . . . . . Operator 3 | . 2 1 . . . . . . . . . . . . . Drone 2 | . . . . . . . . . . . . . . . 2 Watcher 3 | . 2 1 . . . . . . . . . . . . . Swarmer 33 | . 5 6 7 3 . . 1 . . . 5 1 . . 5 Cutter 3 | . . . . . . . . . . 3 . . . . . Grunt 23 | . 5 3 4 6 . . . . . . . 5 . . . Brawler 3 | . . . . 2 . . . . . 1 . . . . . Duelist 2 | . . 1 . . . . . . . 1 . . . . . Sentry 11 | . . 5 2 2 . . . 1 . . 1 . . . . Specialist 1 | . . . . 1 . . . . . . . . . . . Programmer 4 | . . . . . . . . 1 . . 2 . . . 1 Best Kill Streak 6 | . 4 4 6 4 1 3 1 1 1 3 5 2 . . 5 Combat Bots Only 6 | . 4 4 6 4 . . 1 1 . 3 5 2 . . 5 Max Kills in Single Turn 3 | . 2 3 3 2 1 1 1 1 1 1 3 1 . . 1 Gunslinging . | . . . . . . . . . . . . . . . . Exploded 3 | . 2 3 3 2 . . 1 . . . 1 . . . 1 Melee 1 | . . . . . . . . 1 . . . 1 . . . Uniques/NPCs Destroyed . | . . . . . . . . . . . . . . . . Combat | -11 -10 -9 -8 -8 -7 -6 -5 -5 -5 -5 -5 -5 -5 -5 -4 -------- Run | Jun Mat Mat Mat Gar Fac Fac Fac Gar Fac Gar Fac Upp Upp Zhi Pro Damage Taken 8714 | . 311 667 1267 643 129 180 144 697 844 710 599 582 24 . 1917 Core 1387 | . 29 75 123 91 48 52 55 58 197 3 47 42 . . 567 Absorbed by Shields 924 | . . . . . . . . 21 . . 205 308 25 . 365 Reduced by Siege Mode 305 | . . . . . . . . . . 81 87 16 . . 121 Redirected to Shielding 200 | . . . . . . . . 200 . . . . . . . Regen/Repaired (Parts) 229 | . . 47 . . . . 43 . 139 . . . . . . Core Remaining (%) 86 | 100 88 81 . 61 93 93 . . . . . . . . . Volleys Fired 297 | . 32 40 19 35 . . 1 2 22 31 26 15 1 . 73 Largest 2 | . 2 2 2 2 . . 1 1 1 2 2 2 1 . 1 Hottest 225 | . 60 90 120 120 . . 33 33 225 185 130 185 65 . 65 Shots Fired 409 | . 50 67 30 56 . . 1 2 22 49 37 21 1 . 73 Gun 250 | . 18 49 . . . . . . 20 39 35 15 1 . 73 Cannon 75 | . . . 22 46 . . . . . 1 . 6 . . . Launcher 43 | . 13 7 8 10 . . 1 2 2 . . . . . . Special 41 | . 19 11 . . . . . . . 9 2 . . . . Kinetic 12 | . 9 3 . . . . . . . . . . . . . Thermal 292 | . 23 11 22 46 . . . . 20 40 35 21 1 . 73 Explosive 43 | . 13 7 8 10 . . 1 2 2 . . . . . . Electromagnetic 51 | . 5 46 . . . . . . . . . . . . . Robot Hit Streak 22 | . 4 22 15 7 . . . . 6 9 15 16 . . 8 Robot Miss Streak 4 | . 2 2 2 2 . . . . 2 2 2 4 . . 3 Penetration Max . | . . . . . . . . . . . . . . . . Secondary Targets 1 | . 1 . . . . . . . . . . . . . . Max Gunslinging Chain 1 | . 1 . . . . . . . . . . . . . . Shots Hit Robots 233 | . 26 50 16 29 6 5 5 4 9 31 20 10 . . 22 Core Hits 147 | . 26 32 23 24 . 1 1 3 2 7 11 9 . . 8 Critical Kills 1 | . . . . . . 1 . . . . . . . . . Critical Parts Destroyed 3 | . . . . . 1 2 . . . . . . . . . Critical Strikes 5 | . . . . . 1 3 . 1 . . . . . . . Smash 4 | . . . . . 1 3 . . . . . . . . . Sever 1 | . . . . . . . . 1 . . . . . . . Melee Attacks 85 | . . . . 2 19 16 32 16 . . . . . . . Impact 55 | . . . . . 16 16 23 . . . . . . . . Slashing 22 | . . . . . . . 6 16 . . . . . . . Piercing . | . . . . . . . . . . . . . . . . Sneak Attacks 16 | . . . . . 6 4 5 1 . . . . . . . Combat Hostiles 4 | . . . . . 1 . 2 1 . . . . . . . Follow-up Attacks . | . . . . . . . . . . . . . . . . Damage Inflicted 8054 | . 913 1088 920 1088 227 384 264 234 304 750 826 375 . . 681 Guns 3168 | . 137 529 . . . . . . 245 738 592 246 . . 681 Cannons 999 | . . . 316 597 . . . . . . . 86 . . . Explosions 2525 | . 631 452 603 491 . . 55 . 59 . 234 . . . . Melee 1054 | . . . . . 227 384 209 234 . . . . . . . Ramming 64 | . 1 7 1 . . . . . . 12 . 43 . . . Kinetic 88 | . 64 24 . . . . . . . . . . . . . Thermal 4001 | . 166 100 316 597 . . . . 245 738 826 332 . . 681 Explosive 2291 | . 631 452 603 491 . . 55 . 59 . . . . . . Electromagnetic 556 | . 51 505 . . . . . . . . . . . . . Impact 717 | . . . . . 227 384 106 . . . . . . . . Slashing 337 | . . . . . . . 103 234 . . . . . . . Piercing . | . . . . . . . . . . . . . . . . Highest Corruption 16 | . 1 . . . . . . 8 8 12 11 11 11 11 16 Average Corruption 6 | . 1 . . . . . . 3 4 7 11 11 11 11 12 Corruption Purged 12 | . . . . . . . . . 9 3 . . . . . Corruption Blocked . | . . . . . . . . . . . . . . . . Effects 125 | . 9 . . . . . . 4 12 11 18 24 15 7 25 Message Errors 40 | . 2 . . . . . . 1 4 2 5 8 6 3 9 Matter Fused 30 | . 3 . . . . . . 1 2 3 4 6 3 1 7 Heat Flow Errors 11 | . . . . . . . . . 1 1 3 3 1 . 2 Energy Discharges 15 | . 1 . . . . . . . 2 2 3 2 2 1 2 Parts Rejected 1 | . . . . . . . . . . . . . . . 1 Parts Fused 3 | . 1 . . . . . . . . . . 1 . 1 . Data Loss (minor) 17 | . 2 . . . . . . 1 2 2 1 2 3 1 3 Data Loss (major) 1 | . . . . . . . . . . . . 1 . . . Misfires 2 | . . . . . . . . . . 1 1 . . . . Alerts 4 | . . . . . . . . 1 1 . . 1 . . 1 Weapon Failures 1 | . . . . . . . . . . . 1 . . . . Overload Shots 6 | . . . . . . . . . 6 . . . . . . Overflow Damage 454 | . 1 5 14 5 177 198 36 . 18 . . . . . . Projectiles 6 | . 1 . . 5 . . . . . . . . . . . Explosions 37 | . . 5 14 . . . . . 18 . . . . . . Melee 411 | . . . . . 177 198 36 . . . . . . . . Knockbacks 3 | . . 1 . . 1 1 . . . . . . . . . Impact 3 | . . 1 . . 1 1 . . . . . . . . . Kinetic . | . . . . . . . . . . . . . . . . Secondary . | . . . . . . . . . . . . . . . . Self-Inflicted Damage 204 | . 52 73 . . . . . . . 6 73 . . . . Shots 7 | . 3 3 . . . . . . . . 1 . . . . Rammed 13 | . 1 1 1 . . . . . . 3 . 7 . . . Targets Rammed 15 | . 1 1 1 . . . . . . 3 . 9 . . . Kicked . | . . . . . . . . . . . . . . . . Crushed 2 | . . . . . . . . . . . . 2 . . . Highest Temperature 360 | . 116 296 132 45 6 71 267 213 269 360 285 301 150 . 234 Average Temperature 73 | . 47 92 38 15 4 24 51 68 102 109 99 84 64 . 31 Received Heat Transfer 1749 | . 120 246 315 234 57 27 36 72 72 54 31 194 13 . 278 Effects 11 | . . 2 . . . . 2 . 1 2 3 1 . . . Energy Bleed 1 | . . . . . . . . . . 1 . . . . . Interference 8 | . . 2 . . . . 2 . 1 . 3 . . . . Short Circuit 1 | . . . . . . . . . . . . 1 . . . Damage (minor) 1 | . . . . . . . . . . 1 . . . . . Siege Activations 10 | . . . . . . . . . . 3 2 1 . . 4 Total Turns 128 | . . . . . . . . . . 56 30 5 . . 37 Longest Duration 31 | . . . . . . . . . . 31 29 5 . . 17 Robots Corrupted . | . . . . . . . . . . . . . . . . Combat Hostiles . | . . . . . . . . . . . . . . . . Parts Fried 12 | . . 2 . . 4 4 2 . . . . . . . . Impact Corruptions 13 | . . . . . 6 6 1 . . . . . . . . Robots Melted 1 | . . . . . . . . . . 1 . . . . . Combat Hostiles 1 | . . . . . . . . . . 1 . . . . . Parts Melted 8 | . 1 . 1 . . . . . . 4 2 . . . . Heat Transferred 5602 | . 531 333 518 962 . . . . 333 888 853 370 . . 814 Parts Sabotaged . | . . . . . . . . . . . . . . . . Parts Stolen . | . . . . . . . . . . . . . . . . Parts Stripped . | . . . . . . . . . . . . . . . . Power Chain Reactions . | . . . . . . . . . . . . . . . . Missiles Intercepted . | . . . . . . . . . . . . . . . . Alert | -11 -10 -9 -8 -8 -7 -6 -5 -5 -5 -5 -5 -5 -5 -5 -4 ------- Run | Jun Mat Mat Mat Gar Fac Fac Fac Gar Fac Gar Fac Upp Upp Zhi Pro Peak Influence 519 | . 272 319 519 508 449 447 243 236 189 267 360 . . . . Initial 266 | . . 26 124 180 266 154 218 63 84 21 132 . . . . Average 162 | . 63 99 333 371 332 224 130 186 73 194 156 . . . . Maximum Alert Level 2 | . 1 1 2 2 2 2 1 1 . 1 1 . . . . Low Security (%) 65 | 100 96 77 13 6 . 52 85 44 100 46 81 . . . . Level 1 27 | . 3 22 62 47 92 42 14 55 . 53 18 . . . . Level 2 7 | . . . 24 46 7 5 . . . . . . . . . Level 3 . | . . . . . . . . . . . . . . . . Level 4 . | . . . . . . . . . . . . . . . . Level 5 . | . . . . . . . . . . . . . . . . High Security . | . . . . . . . . . . . . . . . . Max Security . | . . . . . . . . . . . . . . . . Squads Dispatched 19 | . 2 1 2 . 2 5 3 . 2 . 1 . . . 1 Investigation 8 | . . . . . . 5 2 . 1 . . . . . . Extermination 3 | . . . . . 2 . . . . . 1 . . . . Reinforcement 7 | . 2 1 2 . . . 1 . 1 . . . . . . Assault 1 | . . . . . . . . . . . . . . . 1 Garrison . | . . . . . . . . . . . . . . . . Intercept . | . . . . . . . . . . . . . . . . Searches Triggered . | . . . . . . . . . . . . . . . . Construction Impeded 1 | . . . 1 . . . . . . . . . . . . Haulers Reinforced . | . . . . . . . . . . . . . . . . Active Scanning Responses . | . . . . . . . . . . . . . . . . Cargo Convoy Interrupts . | . . . . . . . . . . . . . . . . Stealth | -11 -10 -9 -8 -8 -7 -6 -5 -5 -5 -5 -5 -5 -5 -5 -4 --------- Run | Jun Mat Mat Mat Gar Fac Fac Fac Gar Fac Gar Fac Upp Upp Zhi Pro Distress Signals 9 | . 1 2 2 . 1 . 1 . 1 . . . . . 1 Communications Jammed . | . . . . . . . . . . . . . . . . Distress Signals . | . . . . . . . . . . . . . . . . Times Spotted 253 | . 20 20 21 18 13 17 25 18 29 11 14 12 3 . 32 Peak Tracking Total 14 | . 5 4 6 6 6 10 8 14 8 3 5 5 3 . 14 Tactical Retreats 32 | . 1 1 1 . 5 3 6 2 8 . . 2 1 . 2 Traps | -11 -10 -9 -8 -8 -7 -6 -5 -5 -5 -5 -5 -5 -5 -5 -4 ------- Run | Jun Mat Mat Mat Gar Fac Fac Fac Gar Fac Gar Fac Upp Upp Zhi Pro Traps Triggered 8 | . 1 . . 1 . 2 . 1 3 . . . . . . Indirectly . | . . . . . . . . . . . . . . . . Trap Hack Attempts 3 | . . . . . . . 3 . . . . . . . . Triggered . | . . . . . . . . . . . . . . . . Disarmed . | . . . . . . . . . . . . . . . . Reprogrammed 1 | . . . . . . . 1 . . . . . . . . Reused . | . . . . . . . . . . . . . . . . Traps Extracted . | . . . . . . . . . . . . . . . . Installed . | . . . . . . . . . . . . . . . . Triggered 3 | . . . . . . . . . . . . 1 . . 2 Machines | -11 -10 -9 -8 -8 -7 -6 -5 -5 -5 -5 -5 -5 -5 -5 -4 ---------- Run | Jun Mat Mat Mat Gar Fac Fac Fac Gar Fac Gar Fac Upp Upp Zhi Pro Machines Disabled 8 | . 1 . . 1 . . 1 . . 1 4 . . . . Max in Single Turn 4 | . 1 . . 1 . . 1 . . 1 4 . . . . Garrison Access 7 | . . . . . 2 1 1 . 2 . 1 . . . . Garrison Relay 2 | . . . . 1 . . . . . 1 . . . . . Machines Repaired . | . . . . . . . . . . . . . . . . Machines Sabotaged . | . . . . . . . . . . . . . . . . Overloaded Fab Kills . | . . . . . . . . . . . . . . . . Hacking | -11 -10 -9 -8 -8 -7 -6 -5 -5 -5 -5 -5 -5 -5 -5 -4 --------- Run | Jun Mat Mat Mat Gar Fac Fac Fac Gar Fac Gar Fac Upp Upp Zhi Pro Machines Accessed 54 | . 2 6 1 . 6 7 15 2 7 1 2 . 1 4 . Terminals 25 | . 2 5 . . 2 2 8 2 2 1 1 . . . . Fabricators 8 | . . . . . 1 3 4 . . . . . . . . Repair Stations 5 | . . 1 . . 1 . 1 . 2 . . . . . . Recycling Units . | . . . . . . . . . . . . . . . . Scanalyzers 1 | . . . . . . 1 . . . . . . . . . Garrison Access 10 | . . . 1 . 2 1 2 . 3 . 1 . . . . Total Hacks 163 | . 6 13 1 . 8 28 59 6 17 3 4 . 1 17 . Successful 113 | . 3 6 1 . 5 19 39 4 14 1 3 . 1 17 . Failed 50 | . 3 7 . . 3 9 20 2 3 2 1 . . . . Catastrophic 8 | . . 3 . . . 1 3 . 1 . . . . . . Database Lockouts . | . . . . . . . . . . . . . . . . Manual 75 | . 3 11 . . 5 6 36 3 6 3 2 . . . . Terminals 78 | . 6 10 . . 4 6 34 6 7 3 2 . . . . Fabricators 28 | . . . . . 1 10 17 . . . . . . . . Repair Stations 11 | . . 3 . . 1 . 3 . 4 . . . . . . Recycling Units . | . . . . . . . . . . . . . . . . Scanalyzers 11 | . . . . . . 11 . . . . . . . . . Garrison Access 17 | . . . 1 . 2 1 5 . 6 . 2 . . . . Terminal Hacks 39 | . 1 1 . . . 1 12 3 2 1 . . 1 17 . Record 5 | . . . . . . . . . . . . . . 5 . Part Schematic 9 | . . . . . . 1 4 . . . . . . 4 . Robot Analysis 4 | . . . . . . . . . . . . . . 4 . Prototype ID Bank 4 | . . . . . . . . . . . . . . 4 . Open Door 2 | . . . . . . . . 1 . . . . 1 . . Branch Access Points 1 | . . 1 . . . . . . . . . . . . . Emergency Access Points 1 | . . . . . . . . 1 . . . . . . . Machine Index 1 | . . . . . . . 1 . . . . . . . . Unreport Threat 2 | . . . . . . . 2 . . . . . . . . Locate Traps 2 | . 1 . . . . . 1 . . . . . . . . Recall Reinforcements 1 | . . . . . . . 1 . . . . . . . . Hauler Manifests 1 | . . . . . . . 1 . . . . . . . . Registered Components 1 | . . . . . . . . . 1 . . . . . . Registered Prototypes 2 | . . . . . . . 1 . 1 . . . . . . Zone Layout 1 | . . . . . . . 1 . . . . . . . . Garrison Registry 2 | . . . . . . . . 1 . 1 . . . . . Fabricator Hacks 14 | . . . . . 1 3 10 . . . . . . . . Network Status 3 | . . . . . 1 1 1 . . . . . . . . Load Schematic 7 | . . . . . . 2 5 . . . . . . . . Build 4 | . . . . . . . 4 . . . . . . . . Repair Station Hacks 8 | . . 2 . . . . 2 . 4 . . . . . . Scan Component 4 | . . 1 . . . . 1 . 2 . . . . . . Repair 4 | . . 1 . . . . 1 . 2 . . . . . . Recycling Unit Hacks . | . . . . . . . . . . . . . . . . Scanalyzer 11 | . . . . . . 11 . . . . . . . . . Insert Component 5 | . . . . . . 5 . . . . . . . . . Analyze 6 | . . . . . . 6 . . . . . . . . . Garrison Access Hacks 13 | . . . 1 . 2 1 2 . 5 . 2 . . . . Unlock Access 3 | . . . 1 . . . 1 . 1 . . . . . . Seal Access 7 | . . . . . 2 1 1 . 2 . 1 . . . . Coupler Status 3 | . . . . . . . . . 2 . 1 . . . . Unauthorized Hacks 28 | . 2 3 . . 2 3 13 1 3 . 1 . . . . Terminals 17 | . 2 2 . . 1 1 7 1 2 . 1 . . . . Track 3 | . . . . . . . 3 . . . . . . . . Botnet 12 | . 1 2 . . 1 1 3 1 2 . 1 . . . . Operators 2 | . 1 . . . . . 1 . . . . . . . . Fabricators 7 | . . . . . . 2 5 . . . . . . . . Prioritize 2 | . . . . . . . 2 . . . . . . . . Fabnet 1 | . . . . . . . 1 . . . . . . . . Haulers 1 | . . . . . . . 1 . . . . . . . . Recompile 3 | . . . . . . 2 1 . . . . . . . . Repair Stations 2 | . . 1 . . 1 . . . . . . . . . . Mechanics 2 | . . 1 . . 1 . . . . . . . . . . Recycling Units . | . . . . . . . . . . . . . . . . Scanalyzers . | . . . . . . . . . . . . . . . . Garrison Access 2 | . . . . . . . 1 . 1 . . . . . . Reprogram 1 | . . . . . . . 1 . . . . . . . . Eject 1 | . . . . . . . . . 1 . . . . . . Data Cores Recovered . | . . . . . . . . . . . . . . . . Used . | . . . . . . . . . . . . . . . . Hacking Detections 32 | . 2 5 . . 2 5 10 1 4 1 2 . . . . Full Trace Events 4 | . . . . . . 2 1 . . 1 . . . . . Feedback Events 1 | . . . . . . 1 . . . . . . . . . Hackware Fried 1 | . . . . . . 1 . . . . . . . . . Feedback Blocked . | . . . . . . . . . . . . . . . . Robot Schematics Acquired . | . . . . . . . . . . . . . . . . Robots Built . | . . . . . . . . . . . . . . . . Authchips . | . . . . . . . . . . . . . . . . Time . | . . . . . . . . . . . . . . . . Total Robot Build Rating . | . . . . . . . . . . . . . . . . Part Schematics Acquired 14 | . . . . . . 6 4 . . . . . . 4 . Parts Built 4 | . . . . . . . 4 . . . . . . . . Authchips 3 | . . . . . . . 3 . . . . . . . . Time 185 | . . . . . . . 185 . . . . . . . . Total Part Build Rating 23 | . . . . . . . 23 . . . . . . . . Parts Repaired 4 | . . 1 . . . . 1 . 2 . . . . . . Time 139 | . . 32 . . . . 35 . 72 . . . . . . Parts Recycled . | . . . . . . . . . . . . . . . . Recycled Matter . | . . . . . . . . . . . . . . . . Retrieved Matter . | . . . . . . . . . . . . . . . . Retrieved Components . | . . . . . . . . . . . . . . . . Parts Scanalyzed 5 | . . . . . . 5 . . . . . . . . . Part Schematics Acquired 5 | . . . . . . 5 . . . . . . . . . Parts Damaged . | . . . . . . . . . . . . . . . . Bothacking | -11 -10 -9 -8 -8 -7 -6 -5 -5 -5 -5 -5 -5 -5 -5 -4 ------------ Run | Jun Mat Mat Mat Gar Fac Fac Fac Gar Fac Gar Fac Upp Upp Zhi Pro Used RIF Installer 3 | . . . . 2 . . . . . 1 . . . . . Patrol Navigation 1 | . . . . 1 . . . . . . . . . . . Program Shield 1 | . . . . . . . . . . 1 . . . . . Robots Hacked 12 | . . . . 2 2 . . . . 6 1 . . . 1 Non-combat 2 | . . . . . 2 . . . . . . . . . . Combat 10 | . . . . 2 . . . . . 6 1 . . . 1 Robot Hacks Applied 11 | . . . . 2 2 . . . . 6 1 . . . . find_chute 1 | . . . . . 1 . . . . . . . . . . ignore_parts 1 | . . . . . 1 . . . . . . . . . . reboot_system 2 | . . . . . . . . . . 2 . . . . . overwrite_iff 3 | . . . . 2 . . . . . . 1 . . . . formatsys_high 4 | . . . . . . . . . . 4 . . . . . Relay Couplers Released 11 | . . . . 4 . . . . 4 3 . . . . . Ejected 4 | . . . . . . . . . 4 . . . . . . Machine Destruction 7 | . . . . 4 . . . . . 3 . . . . . Attached 4 | . . . . 2 . . . . 1 1 . . . . . Fabnet Peak Effective % 3 | . . . . . . . . . . . . . . . 3 Autooverrided 1 | . . . . . . . . . . . . . . . 1 Robots Rewired 2 | . . . . . 1 . 1 . . . . . . . . Allies Hacked . | . . . . . . . . . . . . . . . . Hacks Repelled . | . . . . . . . . . . . . . . . . Allies | -11 -10 -9 -8 -8 -7 -6 -5 -5 -5 -5 -5 -5 -5 -5 -4 -------- Run | Jun Mat Mat Mat Gar Fac Fac Fac Gar Fac Gar Fac Upp Upp Zhi Pro Total Allies 14 | . . . . 2 1 . 1 4 . 4 1 . . . 1 Largest Group 3 | . . . . 1 1 . 1 2 . 3 3 . . . . Highest-Rated Group 175 | . . . . 16 21 . 49 175 . 53 34 . . . . Highest-Rated Ally 95 | . . . . 16 21 . 49 95 . 29 12 . . . . Total Orders 2 | . . . . . . . 1 . . 1 . . . . . STAY 2 | . . . . . . . 1 . . 1 . . . . . Ally Attacks 71 | . . . . 5 4 . . 12 . 18 31 . . . 1 Total Damage 1078 | . . . . 59 100 . . 446 . 283 190 . . . . Kills 4 | . . . . 1 . . . 1 . 2 . . . . . Allies Corrupted . | . . . . . . . . . . . . . . . . Allies Melted . | . . . . . . . . . . . . . . . . Intel | -11 -10 -9 -8 -8 -7 -6 -5 -5 -5 -5 -5 -5 -5 -5 -4 ------- Run | Jun Mat Mat Mat Gar Fac Fac Fac Gar Fac Gar Fac Upp Upp Zhi Pro Robot Analysis Total 4 | . . . . . . . . . . . . . . 4 . Derelict Logs Recovered 2 | . . . . . . . . . . . . . 1 . 1 Drone Launches . | . . . . . . . . . . . . . . . . Drone Recoveries . | . . . . . . . . . . . . . . . . Exploration | -11 -10 -9 -8 -8 -7 -6 -5 -5 -5 -5 -5 -5 -5 -5 -4 ------------- Run | Jun Mat Mat Mat Gar Fac Fac Fac Gar Fac Gar Fac Upp Upp Zhi Pro Turns Passed 10535 | 65 1828 1812 451 1019 457 259 647 201 859 524 461 582 486 222 662 Spaces Moved 8555 | 37 733 502 114 274 1236 693 1526 254 1552 276 221 328 305 140 364 Core 90 | 3 . . . . . . . . . . . . . . 87 Treads 3070 | 34 733 502 114 274 . . . . . 142 221 328 305 140 277 Legs . | . . . . . . . . . . . . . . . . Wheels . | . . . . . . . . . . . . . . . . Hover 342 | . . . . . . . . . 208 134 . . . . . Flight 5053 | . . . . . 1236 693 1526 254 1344 . . . . . . Fastest Speed 6 | 50 160 240 320 320 26 21 12 6 13 74 155 155 155 155 50 Average Speed 96 | 151 218 312 320 322 27 23 22 19 31 124 155 155 155 155 129 Slowest Speed 560 | 160 240 320 320 560 106 25 27 22 161 184 155 155 155 155 155 Overloaded Moves 93 | . . . . . . . 25 52 16 . . . . . . Propulsion Burnouts . | . . . . . . . . . . . . . . . . Robots Hopped 34 | . . . . . 7 5 13 5 4 . . . . . . Cave-ins Triggered . | . . . . . . . . . . . . . . . . Teleports 1 | . . . . . . . . . . . . . . . 1 Exploration Rate (%) 39 | 4 85 41 13 41 43 31 34 32 36 35 8 47 61 60 54 Regions Visited 15 Branch Regions 4 Pre-discovered Areas 3 | . . . . . . . . . . . . . . 3 . Known Exits Taken 4 | . . . 1 . . . 1 . 1 . 1 . . . . Unknown Exits Taken 8 | 1 1 1 . . 1 1 . . . . . 1 1 1 . Scrap Searched 4 | . . . . . . . . . . . . 1 3 . . Spaces Dug 118 | . . 9 1 . 13 10 25 16 28 2 4 . 1 . 9 Terrain Destroyed 386 | . 41 42 43 38 13 10 25 26 29 2 57 8 1 . 51 Melee 46 | . . . . . 13 10 19 4 . . . . . . . Projectile 82 | . . . 1 . . . . . 7 2 12 8 1 . 51 AOE 258 | . 41 42 42 38 . . 6 22 22 . 45 . . . . Terrain Rammed . | . . . . . . . . . . . . . . . . Walls Destroyed . | . . . . . . . . . . . . . . . . Machines Disabled . | . . . . . . . . . . . . . . . . Actions | -11 -10 -9 -8 -8 -7 -6 -5 -5 -5 -5 -5 -5 -5 -5 -4 --------- Run | Jun Mat Mat Mat Gar Fac Fac Fac Gar Fac Gar Fac Upp Upp Zhi Pro Total 10220 | 43 885 656 167 348 1324 752 1753 365 1892 412 302 376 317 145 483 Wait 923 | . 79 79 11 4 29 29 159 74 275 67 51 23 11 . 32 Move 8475 | 36 732 501 114 273 1222 682 1499 244 1543 275 220 327 304 139 364 Hop 32 | . . . . . 6 5 13 4 4 . . . . . . Pick Up 83 | 1 21 6 5 7 10 6 8 6 3 5 . 1 1 1 2 Fast Attach 78 | 6 2 6 2 6 8 4 13 1 15 8 2 . . 3 2 Attach 45 | . 1 4 4 5 4 3 5 4 7 5 . 1 . . 2 Detach 13 | . 1 . . 1 1 1 1 . 6 2 . . . . . Swap 69 | . 12 15 6 11 6 . 5 3 4 5 2 . . . . Drop 90 | . 4 4 5 2 19 6 14 3 12 10 1 . . 2 8 Fire 297 | . 32 40 19 35 . . 1 2 22 31 26 15 1 . 73 Melee 85 | . . . . 2 19 16 32 16 . . . . . . . Ram 3 | . . . . . . . . . . 3 . . . . . Kick . | . . . . . . . . . . . . . . . . Crush 12 | . 1 1 1 . . . . . . . . 9 . . . Escape Stasis 11 | . . . . 2 . . . 8 1 . . . . . . Rewire 1 | . . . . . . . . . . 1 . . . . . Trap 3 | . . . . . . . 3 . . . . . . . . Miscellaneous . | . . . . . . . . . . . . . . . . Route ------- -11/Junkyard -10/Materials (discovered 4 exits: *Mat x2 / [*Min x2]) -9/Materials (discovered 3 exits: *Mat x2 / Min) -8/Materials (discovered 2 exits: *Fac / Gar) -8/Garrison -7/Factory (discovered 3 exits: *Fac x2 / [*Low]) -6/Factory (discovered 3 exits: *Fac x2 / [*Ext]) -5/Factory (discovered 3 exits: *Upp x2 / Gar) -5/Garrison (discovered 3 exits: *Fac x3) -5/Factory (discovered 2 exits: [*Fac] / Gar) -5/Garrison (discovered 3 exits: *Fac x3) -5/Factory -5/Upper Caves -5/Upper Caves (discovered 2 exits: [*Fac] / *Zhi) -5/Zhirov -4/Proximity Caves History --------- Turn | Location | Event 9 | -11/Junkyard | Discovered new exit (range 16) 66 | -11/Junkyard | Entered Materials 313 | -10/Materials | Build established: Mutant 438 | -10/Materials | Discovered new exit (range 15) 682 | -10/Materials | Discovered new exit (range 13) 866 | -10/Materials | Discovered new exit (range 10) 1046 | -10/Materials | Discovered new exit (range 8) 1894 | -10/Materials | Entered another Materials area 1894 | -9/Materials | Evolved 2 slots: Utility x2 2137 | -9/Materials | Repaired Imp. Treads 2968 | -9/Materials | Discovered new exit (range 8) 3569 | -9/Materials | Identified exit to Mines 3661 | -9/Materials | Discovered new exit (range 10) 3706 | -9/Materials | Entered another Materials area 3706 | -8/Materials | Evolved 2 slots: Utility x2 4151 | -8/Materials | Discovered new exit (range 11) 4157 | -8/Materials | Identified exit to Garrison 4157 | -8/Materials | Entered Garrison 4185 | -8/Garrison | Lost 6 parts (1p2n3u) 4220 | -8/Garrison | Triggered checkpoint 4391 | -8/Garrison | Installed Relay Interface Framework 4543 | -8/Garrison | Build established: Scavenger-Mutant 4610 | -8/Garrison | Triggered checkpoint 4847 | -8/Garrison | Expanded RIF knowledge: Patrol Navigation 4938 | -8/Garrison | Triggered checkpoint 4970 | -8/Garrison | Triggered checkpoint 5083 | -8/Garrison | Discovered new exit (range 9) 5176 | -8/Garrison | Entered Factory 5176 | -7/Factory | Evolved 2 slots: Propulsion x2 5435 | -7/Factory | Discovered new exit (range 7) 5490 | -7/Factory | Build established: Hacker-Sprinter 5574 | -7/Factory | Discovered new exit (range 7) 5620 | -7/Factory | Discovered new exit (range 10) 5633 | -7/Factory | Entered another Factory area 5633 | -6/Factory | Evolved 2 slots: Propulsion x2 5679 | -6/Factory | Discovered new exit (range 12) 5716 | -6/Factory | Discovered new exit (range 13) 5825 | -6/Factory | Hacking Suite fried by hacking feedback 5849 | -6/Factory | Spotted B-75 Beast 5853 | -6/Factory | Discovered new exit (range 21) 5892 | -6/Factory | Entered another Factory area 5892 | -5/Factory | Evolved 2 slots: Utility x2 5901 | -5/Factory | Discovered new exit (range 8) 5951 | -5/Factory | Identified exit to Upper Caves 5952 | -5/Factory | Fabricated Imp. Powered Armor? 6013 | -5/Factory | Repaired Cld. VTOL Module 6061 | -5/Factory | Fabricated Cld. Nuclear Pulse Thruster (x1) 6091 | -5/Factory | Fabricated Cld. Nuclear Pulse Thruster (x1) 6315 | -5/Factory | Discovered exit to Upper Caves (range 14) 6419 | -5/Factory | Fabricated Exp. Propulsion Shielding? 6525 | -5/Factory | Identified exit to Garrison 6539 | -5/Factory | Entered Garrison 6550 | -5/Garrison | Discovered new exit (range 60) 6550 | -5/Garrison | Discovered new exit (range 40) 6550 | -5/Garrison | Discovered new exit (range 49) 6561 | -5/Garrison | Spotted B-75 Beast 6607 | -5/Garrison | Rescued a captive Derelict 6608 | -5/Garrison | Rescued a captive Derelict 6706 | -5/Garrison | Found Relay Coupler [Proto] 6707 | -5/Garrison | Found Relay Coupler [Proto] 6709 | -5/Garrison | Found Relay Coupler [Proto] 6710 | -5/Garrison | Found Relay Coupler [Proto] 6721 | -5/Garrison | Found embedded Infiltrators 6740 | -5/Garrison | Entered Factory 6757 | -5/Factory | Discovered new exit (range 16) 6766 | -5/Factory | Lost 5 parts (4u1w) 6834 | -5/Factory | Repaired Field Propulsion Drive 7446 | -5/Factory | Repaired Fusion Reactor 7596 | -5/Factory | Identified exit to Garrison 7599 | -5/Factory | Entered Garrison 7612 | -5/Garrison | Discovered new exit (range 35) 7612 | -5/Garrison | Discovered new exit (range 63) 7612 | -5/Garrison | Discovered new exit (range 74) 7622 | -5/Garrison | Lost 3 parts (1n1u1w) 7705 | -5/Garrison | Garrison Relay disabled 7872 | -5/Garrison | Build established: Hacker-Mutant 7900 | -5/Garrison | Triggered checkpoint 7917 | -5/Garrison | System corruption reached 10% 7947 | -5/Garrison | Lost 3 parts (3u) 8021 | -5/Garrison | Expanded RIF knowledge: Program Shield 8066 | -5/Garrison | Triggered checkpoint 8123 | -5/Garrison | Entered Factory 8123 | -5/Factory | Accompanied by 2 allies 8208 | -5/Factory | Build established: Bothacker-Mutant 8356 | -5/Factory | Spotted B-75 Beast 8517 | -5/Factory | Discovered exit to Upper Caves (range 15) 8584 | -5/Factory | Entered Upper Caves 9117 | -5/Upper Caves | Discovered new exit (range 13) 9166 | -5/Upper Caves | Entered another Upper Caves area 9172 | -5/Upper Caves | Attracted the attention of an 0b10 checkpoint 9180 | -5/Upper Caves | Discovered new exit (range 8) 9406 | -5/Upper Caves | Encountered a Warlord checkpoint 9474 | -5/Upper Caves | Learned Factory interactive machine intel 9608 | -5/Upper Caves | Discovered new exit (range 11) 9652 | -5/Upper Caves | Entered Zhirov 9653 | -5/Zhirov | Discovered new exit (range 3) 9681 | -5/Zhirov | Met Zhirov 9715 | -5/Zhirov | Learned location of Quarantine (-2) 9715 | -5/Zhirov | Learned location of Testing (-3) 9715 | -5/Zhirov | Learned location of Command (-1) 9724 | -5/Zhirov | Zhirov requested help retrieving the SGEMP Prototype 9748 | -5/Zhirov | Found Alien Artifact 9748 | -5/Zhirov | Identified Integrated Reactor 9748 | -5/Zhirov | Installed Integrated Reactor, increased core energy generation (+10) 9767 | -5/Zhirov | Found Alien Artifact 9874 | -5/Zhirov | Entered Proximity Caves 9968 | -4/Proximity Caves | Spotter reported a threat 9991 | -4/Proximity Caves | Spotter reported a threat 10044 | -4/Proximity Caves | Spotter reported a threat 10100 | -4/Proximity Caves | Learned Research emergency access door positions 10167 | -4/Proximity Caves | Spotted B-86 Titan 10439 | -4/Proximity Caves | Attracted the attention of an 0b10 outpost 10441 | -4/Proximity Caves | Identified Transdimensional Reconstructor 10441 | -4/Proximity Caves | Warped through subspace 10470 | -4/Proximity Caves | Spotter reported a threat 10480 | -4/Proximity Caves | Core integrity fell below 50% 10530 | -4/Proximity Caves | Core integrity fell below 20% 10535 | -4/Proximity Caves | Lost 5 parts (4n1u) 10536 | -4/Proximity Caves | Destroyed by G-67 Veteran with Field Laser Last Messages --------------- 10498_ Fabnet algorithm triggers E-15 Imp IFF filter rewrite. 10498_ L-61 Swordsman Lgt. Antimatter Reactor blown off. 10498_ L-61 Swordsman Flexi-carbon Leg blown off. 10498_ E-15 Imp destroyed. 10498_ Acquired Relay Coupler [NC]. 10499_ System corrupted: Biometal Heavy Treads rejected. 10499_ Acquired Biometal Heavy Treads. 10500_ Adv. Heavy Siege Treads destroyed. 10502_ B-86 Titan activates siege mode. 10502_ Acquired Unknown Flight Unit. 10502_ Identified Cesium-ion Thruster. 10503_ Biometal Heavy Treads destroyed. 10504_ Adv. Heavy Siege Treads destroyed. 10504_ Cesium-ion Thruster destroyed. 10504_ Penetrated by Slug. 10504_ Slug penetrates Wall. 10504_ Acquired 2 matter. 10506_ B-60 Warrior heat spikes uncontrollably. 10520_ System corrupted: IFF burst signal emitted. 10535_ Adv. Power Amplifier destroyed. Map ----- +----------------------------------------------------+ | ?????????????????????????????????????????????????? | | ?????????????????????????????????????????????????? | | ?????????????????????????????????????????????????? | | ##???????????????????????????????????????????????? | | ???????????????????????????????????????????????? | | ????????????????????????????????????????????????? | | ????????????????????????????????????????????????? | | ?????????????????????????? ????????????????????? | | ???????????????????# ????? ???????????????????? | | ????????????????### ?????? ?????????????????? | | ???????????????? ?????? ? ???????????????? | | ???????????????? ?????? ? ???????????????? | | ###?????????????# ?????? ? ????????????????? | | # ##????????????# ##?###? ? ?????????????????? | | #????????????# #"""?# ?????????????????? | | ##?????####??# # ??# ??????????????????? | | #????## ### ???# ???????????????????? | | ##???## ## ????# ????????????????????? | | ##???## #????# ?????????????????????? | | ###?## #????# #?????????????????????? | | ### ####### #?????????????????????? | | ## ##########????????????? | | #""### # ### #????????????? | | ##????# #####?# ######### #????????????? | | ##?????# ##????#bl#???????# #????????????? | | ########### "#????# @#???##### ####?????????? | | ###### ## ##???# #??## #?????????? | | #### = ##??# g#?## ##?????????? | | # #?# %*= ##?# ### ##??????????? | | ###?# ### "|!%! ### g ## #???????????? | | ?##?# ##?### !!* #### #### #???????????? | | ## # ##???##][ ##?# ##??##???????????? | | ##???###! #??# #???????????????? | | % #?????" #??# #???????????????? | | ###### ##???#" #??## #???????????????? | | ?????## ####"" ##??### #####???????????????? | | ??????## % #????######???????????????????? | | ???????### #?????????????????????????????? | | ?????????# ##?????????????????????????????? | | ?????????# #??????????????????????????????? | | ?????????# #?????????#???????????????????? | | ?????????# ##???????? ????????????????????? | | ?????????# ###???????# ?????????????????????? | | ?????????# #????????# #?????????????????????? | | ?????????## ####???????# #??????????????????????? | | ###??????## #???????# #???????????????????????? | | # ##????## #??????# #????????????????????????? | | " "###?## ##????# #?????????????????????????? | | ##" ### ###?# #??????????????????????????? | | ?## #### ## ######?????????????????????? | +----------------------------------------------------+ Best States ------------- Heat Dissipation 65 Energy Generation 41 Energy Capacity 700 Matter Stores 300 Matter Capacity 300 Sight Range 22 Terrain Scan Density 10 ECM Strength 2 Power Amplification 30 Armor Coverage 800 Propulsion Shielding 90 Utility Shielding 33 Evasion (%) 65 Recoil Reduction 6 Offensive Hacking 54 Defensive Hacking 24 Relay Coupler Types 2 Relay Coupler Value 48 Authchip Count 2 Item Schematics ----------------- Impulse Thruster | -6/Factory | Hacked Cld. VTOL Module | -6/Factory | Scanalyzed Imp. Trap Extractor | -6/Factory | Scanalyzed Adv. ECM Suite | -6/Factory | Scanalyzed Force Field | -6/Factory | Scanalyzed Enh. Optical Array | -6/Factory | Scanalyzed Cld. Nuclear Pulse Thruster | -5/Factory | Hacked Imp. Fusion Compressor | -5/Factory | Hacked Stasis Canceller | -5/Factory | Hacked Exp. Propulsion Shielding | -5/Factory | Hacked Assault Drone Bay | -5/Zhirov | Free Exp. Heat Sink | -5/Zhirov | Free Exp. Optical Array | -5/Zhirov | Free Imp. Arc Thrower | -5/Zhirov | Free Robot Schematics ------------------ None Fabricated ------------ Imp. Powered Armor | x1 | -5/Factory | Preloaded Cld. Nuclear Pulse Thruster | x1 | -5/Factory | Authchip Cld. Nuclear Pulse Thruster | x1 | -5/Factory | Authchip Exp. Propulsion Shielding | x1 | -5/Factory | Authchip Alien Tech Used ----------------- Integrated Reactor Transdimensional Reconstructor Achievements -------------- None Challenges ------------ None Game ------ Seed ThunderQuantumRigger Manual? 0 Play Time 02:02:31 Cumulative 465.0 hours Start 2023.04.19 @ 11:09:30 End 2023.04.19 @ 13:14:31 Sessions 1 Manual Loads 0 Difficulty Rogue Special Mode None Game No. 501 Rogue 492 Adventurer 8 Explorer 1 Win Type - Total 8 Types 5/1/2/0/0/0/0/0/0 Lore% 81 Gallery% 91 Achievement% 71 Wizard Run 0 Options --------- ASCII 0 Keyboard 0 Movement Numpad Keybinds 1 Fullscreen 2 Font 18/Terminus Map View 76x50 Tactical HUD 1 Map Filters NONE Filters NONE Steam 1 RUN: a63f8edd-eae7-4567-ab85-ee1b40d3e2fa